bitfinex/quotes_SOLUSD_20250421
["timestamp","ask_amount","ask_price","bid_price","bid_amount"]
[1745234781441,0.063,138.35,138.34,87.92856729]
[1745234782244,0.063,138.35,138.34,106.57821615]
[1745234782435,0.063,138.35,138.34,87.92856729]
[1745234783936,0.063,138.35,138.34,106.57821615]
[1745234784649,0.063,138.35,138.34,87.92856729]
[1745234785334,0.063,138.35,138.34,106.57821615]
[1745234786135,0.063,138.35,138.34,87.92856729]
[1745234786933,0.063,138.35,138.34,80.7]
[1745234787441,0.063,138.37,138.34,132.57821615]
[1745234788156,0.063,138.37,138.36,7.2275224]
[1745234788336,0.063,138.37,138.36,25.87717126]
[1745234789054,0.063,138.37,138.36,7.2275224]
[1745234790955,0.063,138.37,138.36,87.9275224]
[1745234792264,0.063,138.37,138.36,106.57717126]
[1745234792635,0.063,138.37,138.36,80.7]
[1745234793359,0.063,138.37,138.36,106.57717126]
[1745234793658,0.063,138.43,138.37,44.64964886]
[1745234794439,0.063,138.43,138.38,7.22647781]
[1745234796959,0.063,138.43,138.37,33.22677506]
[1745234797256,0.063,138.43,138.37,7.22677506]
[1745234799645,0.063,138.43,138.38,18.64964886]
[1745234799845,0.063,138.43,138.37,7.22677506]
[1745234800047,0.063,138.43,138.37,25.87642392]
[1745234801151,0.063,138.43,138.37,7.22677506]
[1745234802754,0.063,138.43,138.37,25.87642392]
[1745234803734,0.063,138.43,138.39,7.22595563]
[1745234804139,0.063,138.43,138.39,87.92595563]
[1745234804341,0.063,138.43,138.4,18.64964886]
[1745234805148,0.063,138.43,138.42,26.0]
[1745234805356,0.063,138.43,138.42,112.9605]
[1745234805742,0.063,138.43,138.42,120.18488953]
[1745234806269,0.063,138.43,138.42,138.83453839]
[1745234806971,0.063,138.43,138.42,80.7]
[1745234808867,0.063,138.43,138.42,87.92438953]
[1745234811073,0.063,138.43,138.42,106.57403839]
[1745234816472,0.063,138.45,138.44,26.0]
[1745234816776,0.063,138.45,138.44,44.64964886]
[1745234817076,1e-08,138.45,138.44,133.69851043]
[1745234817284,1e-08,138.45,138.44,133.55634886]
[1745234818073,1e-08,138.45,138.44,140.77969471]
[1745234818777,0.063,138.46,138.45,99.34964886]
[1745234818778,1e-08,138.46,138.45,99.34964886]
[1745234820380,0.063,138.51,138.45,99.34964886]
[1745234820381,0.063,138.51,138.49,18.64964886]
[1745234820672,0.063,138.51,138.48,106.7]
[1745234821888,0.063,138.51,138.49,18.64964886]
[1745234823176,0.063,138.51,138.48,7.22110747]
[1745234824486,0.063,138.51,138.46,44.64964886]
[1745234824487,0.063,138.51,138.47,7.22178089]
[1745234826576,0.063,138.51,138.46,87.92208558]
[1745234827863,0.063,138.51,138.46,80.7]
[1745234829476,6.3846,138.51,138.46,80.7]
[1745234829995,13.60469875,138.51,138.46,80.7]
[1745234830966,1.6093,138.5,138.43,7.22354756]
[1745234831377,1.6093,138.5,138.42,87.92417866]
[1745234832093,1.6093,138.5,138.4,25.98831762]
[1745234832094,25.27258284,138.49,138.4,87.92520791]
[1745234832298,0.14216157,138.48,138.4,80.7]
[1745234832469,0.14216157,138.48,138.4,87.92531558]
[1745234833275,25.27258284,138.49,138.4,87.92531558]
[1745234834704,25.27623311,138.47,138.4,80.7]
[1745234835291,0.14216157,138.46,138.37,106.7]
[1745234835498,7.9309,138.45,138.36,25.87695279]
[1745234836805,25.28171048,138.44,138.35,33.2278907]
[1745234837017,0.14216157,138.43,138.35,33.2278907]
[1745234838188,7.22438953,138.42,138.35,33.2278907]
[1745234839979,8.83473137,138.41,138.34,87.95850804]
[1745234840183,8.83473137,138.41,138.34,7.25850804]
[1745234841104,8.83473137,138.41,138.34,0.03]
[1745234844711,8.83473137,138.41,138.34,18.67964886]
[1745234844925,1.5923,138.44,138.36,18.64964886]
[1745234845091,1.5923,138.44,138.36,99.34964886]
[1745234845711,23.60250673,138.46,138.36,99.34964886]
[1745234846004,7.22198771,138.47,138.4,18.64964886]
[1745234846226,14.99127117,138.48,138.4,99.34964886]
[1745234846396,8.81377117,138.48,138.4,99.34964886]
[1745234846913,8.81377117,138.48,138.42,18.64964886]
[1745234847795,1.5923,138.48,138.41,25.28719022]
[1745234848398,8.81359854,138.48,138.41,7.22491149]
[1745234849438,1.5923,138.48,138.42,25.87363844]
[1745234849738,23.60028848,138.5,138.42,25.87363844]
[1745234849905,7.22028848,138.5,138.42,106.57363844]
[1745234850106,13.46041735,138.51,138.42,124.63461228]
[1745234850406,0.063,138.51,138.42,150.63461228]
[1745234852337,0.063,138.51,138.46,18.64964886]
[1745234852528,0.063,138.51,138.46,99.34964886]
[1745234853254,0.063,138.51,138.46,105.98814886]
[1745234853614,0.063,138.51,138.47,25.27623311]
[1745234855829,0.063,138.51,138.48,18.64964886]
[1745234856353,0.063,138.51,138.47,7.22178089]
[1745234856857,0.063,138.51,138.48,18.64964886]
[1745234857148,0.063,138.53,138.5,44.64964886]
[1745234857434,0.063,138.53,138.5,125.34964886]
[1745234857626,0.063,138.53,138.51,7.21969532]
[1745234859246,0.063,138.53,138.52,18.64964886]
[1745234859737,0.063,138.53,138.52,25.86882298]
[1745234861448,0.063,138.53,138.52,106.56882298]
[1745234861742,0.063,138.6,138.59,26.0]
[1745234862039,0.063,138.6,138.57,7.21656924]
[1745234862244,0.063,138.6,138.57,25.8662181]
[1745234862435,0.063,138.6,138.57,7.21656924]
[1745234863132,0.063,138.6,138.56,7.21693168]
[1745234863643,0.063,138.6,138.55,7.21742925]
[1745234864143,0.063,138.6,138.59,44.64964886]
[1745234865037,1e-08,138.6,138.59,44.64964886]
[1745234865926,1e-08,138.6,138.57,26.0]
[1745234866745,1e-08,138.6,138.57,106.7]
[1745234866921,1e-08,138.6,138.59,7.21552781]
[1745234870252,1e-08,138.6,138.59,106.56517667]
[1745234870633,1e-08,138.6,138.59,112.80777667]
[1745234871936,1e-08,138.6,138.59,138.80777667]
[1745234872132,1e-08,138.63,138.59,130.98875777]
[1745234872339,1e-08,138.63,138.62,44.64964886]
[1745234872652,1e-08,138.63,138.62,125.34964886]
[1745234873552,1e-08,138.63,138.62,132.56361509]
[1745234877867,1e-08,138.65,138.63,18.64964886]
[1745234878040,1e-08,138.65,138.64,25.86257442]
[1745234881549,1e-08,138.65,138.64,106.56257442]
[1745234884241,1e-08,138.66,138.65,18.79181043]
[1745234884444,1e-08,138.66,138.65,99.49181043]
[1745234884647,1e-08,138.66,138.65,99.34964886]
[1745234885159,1e-08,138.66,138.65,99.49181043]
[1745234885351,1e-08,138.66,138.65,99.34964886]
[1745234886242,1e-08,138.66,138.65,106.56205419]
[1745234887961,1e-08,138.66,138.65,87.91240533]
[1745234888269,1e-08,138.66,138.63,51.86303858]
[1745234888642,1e-08,138.66,138.62,80.7]
[1745234888866,1e-08,138.66,138.61,7.21407357]
[1745234893070,0.14216158,138.66,138.6,26.0]
[1745234893372,0.14216158,138.66,138.59,80.7]
[1745234893373,1.5651,138.65,138.59,80.7]
[1745234893672,1.5651,138.65,138.58,25.8656476]
[1745234894479,7.21292556,138.64,138.58,25.8656476]
[1745234895377,7.21292556,138.64,138.56,25.86637475]
[1745234895676,0.14216157,138.63,138.56,25.86672682]
[1745234896874,7.21396623,138.62,138.56,25.86672682]
[1745234901158,7.21396623,138.62,138.55,7.21761097]
[1745234903182,7.2134875,138.63,138.56,25.86654368]
[1745234903673,17.7651,138.65,138.58,18.64964886]
[1745234903877,24.97767721,138.65,138.58,18.64964886]
[1745234905086,24.97767721,138.65,138.59,7.21552781]
[1745234906966,17.7651,138.65,138.61,7.21448668]
[1745234907162,1.5651,138.65,138.61,7.21448668]
[1745234908986,1.5651,138.65,138.6,7.21500721]
[1745234910159,8.77753168,138.65,138.6,7.21500721]
[1745234910363,8.77753168,138.65,138.59,25.86495909]
[1745234912384,26.80854502,138.65,138.58,87.91582743]
[1745234913688,8.77753168,138.65,138.58,87.91582743]
[1745234915181,8.77753168,138.65,138.59,25.8647638]
[1745234916286,1e-08,138.66,138.59,25.8647638]
[1745234916598,1e-08,138.66,138.59,43.90358333]
[1745234916777,7.21210625,138.66,138.59,25.8647638]
[1745234918790,1e-08,138.66,138.59,25.8647638]
[1745234919700,1e-08,138.66,138.59,43.90358333]
[1745234920195,0.14216158,138.66,138.59,25.8647638]
[1745234921091,0.14216158,138.66,138.58,7.2159355]
[1745234921296,6.3037,138.65,138.57,33.21646763]
[1745234921501,27.74706157,138.64,138.55,7.21761097]
[1745234922000,0.14216157,138.62,138.56,25.86667511]
[1745234923083,7.21448668,138.61,138.56,25.86667511]
[1745234924903,7.21448668,138.61,138.56,18.64964886]
[1745234926394,7.21448668,138.61,138.56,25.86670996]
[1745234927801,7.21448668,138.61,138.55,7.21740387]
[1745234928197,7.21448668,138.61,138.55,18.64964886]
[1745234928796,0.14216157,138.6,138.54,26.0]
[1745234929005,0.14216157,138.6,138.54,33.21808006]
[1745234929800,7.21552781,138.59,138.54,33.21808006]
[1745234930502,7.21448668,138.61,138.55,18.64964886]
[1745234931695,7.21448668,138.61,138.56,7.21709006]
[1745234933315,23.05418964,138.62,138.57,7.216565]
[1745234934091,15.84000001,138.66,138.58,44.64964886]
[1745234935100,15.84000001,138.66,138.59,7.21552781]
[1745234935101,7.21240533,138.65,138.59,7.21552781]
[1745234935423,7.21240533,138.65,138.58,7.2159014]
[1745234935715,7.21240533,138.65,138.57,82.2325]
[1745234935716,0.14216157,138.64,138.57,80.7]
[1745234936014,26.14216157,138.64,138.55,25.86702348]
[1745234936215,0.14216157,138.62,138.55,25.86702348]
[1745234937026,7.21448668,138.61,138.55,25.86702348]
[1745234938511,7.21396623,138.62,138.55,25.86702348]
[1745234941517,8.87346684,138.63,138.55,43.9110509]
[1745234941814,15.84000001,138.66,138.59,18.64964886]
[1745234942797,7.21240533,138.65,138.6,7.21500721]
[1745234944926,7.21240533,138.65,138.59,25.86501624]
[1745234945126,7.21240533,138.65,138.59,18.64964886]
[1745234945511,0.14216157,138.64,138.57,25.86606431]
[1745234945709,0.14216157,138.64,138.57,18.64964886]
[1745234946113,7.21344586,138.63,138.58,7.21604849]
[1745234954729,7.21344586,138.63,138.57,25.86598584]
[1745234955531,0.14216157,138.62,138.55,26.0]
[1745234956511,7.21448668,138.61,138.55,33.21748778]
[1745234956707,7.21448668,138.61,138.55,7.21748778]
[1745234960219,7.21344586,138.63,138.56,18.64964886]
[1745234961940,7.21344586,138.63,138.57,7.21656924]
[1745234962249,26.14216157,138.64,138.58,18.64964886]
[1745234962250,33.2131393,138.64,138.58,18.64964886]
[1745234963339,0.14216157,138.63,138.56,87.91685018]
[1745234963943,7.21396623,138.62,138.55,25.8672116]
[1745234964526,25.24888182,138.62,138.55,25.8672116]
[1745234971052,25.24888182,138.62,138.54,18.64964886]
[1745234971053,0.14216157,138.61,138.54,18.64964886]
[1745234972557,7.21500721,138.6,138.53,88.7542]
[1745234973447,7.21500721,138.6,138.53,8.0542]
[1745234973650,25.25252524,138.6,138.53,15.27282772]
[1745234977967,7.21473384,138.61,138.54,18.64964886]
[1745234978167,15.6,138.63,138.54,44.64964886]
[1745234979048,7.21418697,138.62,138.55,7.21761097]
[1745234981541,7.21418697,138.62,138.55,87.91761097]
[1745234982655,22.81361407,138.63,138.55,87.91761097]
[1745234982842,22.81361407,138.63,138.55,105.96163839]
[1745234983044,40.84722872,138.63,138.56,18.64964886]
[1745234983558,7.21361407,138.63,138.56,18.64964886]
[1745234984861,7.21361407,138.63,138.58,18.64964886]
[1745234986667,7.21361407,138.63,138.58,7.21588812]
[1745234987758,25.2435999,138.65,138.58,18.64964886]
[1745234988758,25.2435999,138.65,138.58,7.21563626]
[1745234989870,25.2435999,138.65,138.58,18.64964886]
[1745234990946,7.21240533,138.65,138.58,24.83774886]
[1745234991343,7.21240533,138.65,138.58,52.43244886]
[1745234991770,7.21240533,138.65,138.59,7.21552781]
[1745234992769,7.21188519,138.66,138.6,7.21489934]
[1745234993478,1e-08,138.66,138.61,26.0]
[1745234993774,1e-08,138.66,138.62,18.64964886]
[1745234996051,1e-08,138.66,138.62,25.86359599]
[1745234997655,1e-08,138.66,138.64,18.64964886]
[1745234997850,1e-08,138.66,138.64,99.34964886]
[1745235001376,1e-08,138.66,138.62,18.64964886]
[1745235001567,1e-08,138.66,138.62,25.86326334]
[1745235002285,1e-08,138.66,138.62,106.56326334]
[1745235002457,1e-08,138.66,138.65,26.0]
[1745235002783,1e-08,138.66,138.65,52.25454886]
[1745235003782,1e-08,138.66,138.65,59.46695419]
[1745235005872,1e-08,138.66,138.65,140.30911576]
[1745235006867,1e-08,138.66,138.65,146.09469651]
[1745235007562,1e-08,138.66,138.65,140.30911576]
[1745235009990,1e-08,138.66,138.65,146.07002721]
[1745235010179,0.063,138.67,138.66,99.34964885]
[1745235010376,0.063,138.67,138.66,110.69468534]
[1745235010883,0.063,138.67,138.66,106.56153403]
[1745235011384,0.063,138.67,138.66,132.56153403]
[1745235013389,0.063,138.67,138.66,132.37182033]
[1745235020197,0.063,138.67,138.66,125.15993515]
[1745235021194,0.063,138.67,138.66,44.64964886]
[1745235021374,0.063,138.67,138.63,80.51028629]
[1745235021577,0.063,138.67,138.62,18.64964886]
[1745235021892,0.063,138.67,138.62,51.86359137]
[1745235022099,0.063,138.67,138.62,25.86359137]
[1745235022394,0.063,138.67,138.62,51.86359137]
[1745235022793,0.063,138.67,138.62,44.64964886]
[1745235023403,0.063,138.67,138.62,51.86351983]
[1745235025123,0.063,138.67,138.66,18.64964886]
[1745235026380,0.04136,138.67,138.65,26.0]
[1745235027000,0.04136,138.67,138.63,25.86303255]
[1745235033204,0.04136,138.67,138.63,18.64964886]
[1745235036320,0.04136,138.67,138.63,25.8630761]
[1745235036814,0.04136,138.67,138.63,18.64964886]
[1745235036996,0.04136,138.67,138.62,106.51028629]
[1745235037212,0.04136,138.67,138.62,80.51028629]
[1745235037403,0.18352157,138.67,138.6,26.0]
[1745235038008,0.04136,138.67,138.61,18.64964886]
[1745235038208,0.04136,138.67,138.65,18.64964886]
[1745235038713,0.04136,138.67,138.62,18.64964886]
[1745235038922,0.04136,138.67,138.62,99.15993515]
[1745235039219,0.04136,138.67,138.65,33.21240533]
[1745235039514,0.063,138.71,138.68,18.64964886]
[1745235040496,0.063,138.71,138.7,26.0]
[1745235040908,0.063,138.71,138.7,33.20980533]
[1745235041517,0.063,138.71,138.7,7.20980533]
[1745235041717,0.063,138.71,138.7,33.20980533]
[1745235043295,0.063,138.71,138.7,51.85945419]
[1745235044397,0.063,138.74,138.73,26.0]
[1745235044601,0.063,138.81,138.73,44.64964886]
[1745235044802,7.26709192,138.81,138.73,44.64964886]
[1745235045516,0.14216157,138.8,138.7,88.53618629]
[1745235045719,0.14216157,138.8,138.71,18.64964886]
[1745235046515,7.26813005,138.79,138.71,25.85871913]
[1745235048037,0.03,138.77,138.71,25.85871913]
[1745235051536,0.03,138.77,138.71,25.85857333]
[1745235054931,0.03,138.77,138.71,106.36885962]
[1745235057126,0.03,138.77,138.74,26.0]
[1745235058521,0.03,138.77,138.75,18.64964886]
[1745235060038,0.03,138.77,138.75,106.36691741]
[1745235060915,0.03,138.77,138.76,0.14216157]
[1745235061939,0.03,138.77,138.76,51.99849823]
[1745235062725,0.03,138.77,138.76,25.99849823]
[1745235064215,0.03,138.77,138.76,25.85633666]
[1745235064421,0.03,138.77,138.76,44.64964886]
[1745235064616,0.03,138.77,138.75,80.51028629]
[1745235064819,0.03,138.77,138.74,26.0]
[1745235066339,0.03,138.77,138.75,18.64964886]
[1745235066825,0.03,138.77,138.74,26.0]
[1745235070541,0.03,138.77,138.73,18.64964886]
[1745235070745,0.03,138.77,138.7,80.51028629]
[1745235071049,7.2066878,138.76,138.7,80.51028629]
[1745235071222,7.2066878,138.76,138.7,106.51028629]
[1745235071421,7.2066878,138.76,138.7,80.51028629]
[1745235071841,7.2066878,138.76,138.7,106.51028629]
[1745235072242,7.2066878,138.76,138.69,18.64964886]
[1745235072635,25.22340731,138.76,138.69,18.64964886]
[1745235072946,1.5109,138.74,138.68,80.51028629]
[1745235073150,7.20824623,138.73,138.67,26.0]
[1745235074841,8.71884155,138.74,138.68,18.64964886]
[1745235075225,1.5109,138.74,138.68,18.64964886]
[1745235075439,8.71868109,138.74,138.68,18.64964886]
[1745235076446,8.71868109,138.74,138.7,18.64964886]
[1745235077252,8.71868109,138.74,138.68,7.21034116]
[1745235077444,1.5109,138.74,138.7,18.64964886]
[1745235077962,7.20741139,138.75,138.7,18.64964886]
[1745235078948,7.20741139,138.75,138.7,25.85945365]
[1745235080353,7.20741139,138.75,138.7,18.64964886]
[1745235081350,7.20741139,138.75,138.7,25.85941375]
[1745235081932,22.26688853,138.76,138.7,25.85941375]
[1745235082133,22.26688853,138.76,138.7,106.36970004]
[1745235082435,0.03,138.77,138.7,106.36970004]
[1745235082749,0.03,138.77,138.74,18.64964886]
[1745235084440,0.03,138.77,138.74,25.85731845]
[1745235086635,0.03,138.77,138.74,124.38692144]
[1745235087144,0.03,138.77,138.73,27.6344]
[1745235087145,0.03,138.77,138.73,26.0]
[1745235087331,1.5109,138.76,138.7,106.51028629]
[1745235087848,7.2072072,138.75,138.71,18.64964886]
[1745235089543,7.2072072,138.75,138.7,106.51028629]
[1745235090232,7.2072072,138.75,138.71,18.64964886]
[1745235092445,8.71780069,138.76,138.71,25.85868814]
[1745235092669,8.71780069,138.76,138.71,18.64964886]
[1745235097156,8.71780069,138.76,138.7,26.0]
[1745235100660,8.71780069,138.76,138.69,18.64964886]
[1745235102173,26.7345202,138.76,138.69,18.64964886]
[1745235102340,0.14216157,138.75,138.66,18.64964886]
[1745235102542,26.7345202,138.76,138.66,18.64964886]
[1745235102543,26.14216157,138.73,138.66,18.64964886]
[1745235102975,26.0,138.71,138.65,0.063]
[1745235103141,0.14216157,138.7,138.65,0.063]
[1745235104172,0.14216157,138.68,138.65,0.063]
[1745235104478,32.21296157,138.68,138.65,0.063]
[1745235104859,1.5493,138.67,138.65,0.063]
[1745235105052,0.14216157,138.66,138.65,0.063]
[1745235106682,7.35404675,138.66,138.65,0.063]
[1745235106882,7.35404675,138.66,138.64,0.063]
[1745235107089,0.14216157,138.64,138.6,0.063]
[1745235107380,0.14216157,138.62,138.6,0.063]
[1745235107759,26.14216157,138.6,138.59,0.03]
[1745235108886,33.35716878,138.6,138.59,0.03]
[1745235113281,33.35716878,138.6,138.59,1e-08]
[1745235115075,33.21500721,138.6,138.59,1e-08]
[1745235115397,33.35716878,138.6,138.59,1e-08]
[1745235116483,7.21500721,138.6,138.59,1e-08]
[1745235116784,1.5493,138.61,138.59,1e-08]
[1745235116785,7.21462767,138.61,138.59,1e-08]
[1745235117162,22.31363229,138.63,138.59,1e-08]
[1745235117390,15.1,138.63,138.59,1e-08]
[1745235120978,22.31349246,138.63,138.59,1e-08]
[1745235123271,0.14216157,138.62,138.59,1e-08]
[1745235124696,7.21448668,138.61,138.59,1e-08]
[1745235125875,0.14216157,138.6,138.59,1e-08]
[1745235126178,33.21448668,138.61,138.59,1e-08]
[1745235126381,1.66236157,138.62,138.59,1e-08]
[1745235126382,7.2141301,138.62,138.59,1e-08]
[1745235126580,22.31359591,138.63,138.59,1e-08]
[1745235129704,15.1,138.63,138.59,1e-08]
[1745235130210,22.3134786,138.63,138.59,1e-08]
[1745235132707,7.2134786,138.63,138.59,1e-08]
[1745235132881,7.21292556,138.64,138.59,1e-08]
[1745235133378,7.21292556,138.64,138.59,18.64964887]
[1745235134391,7.21240533,138.65,138.59,25.86503007]
[1745235134597,0.03,138.69,138.62,26.0]
[1745235134812,0.03,138.69,138.63,18.64964886]
[1745235135190,0.03,138.69,138.65,18.64964886]
[1745235135495,7.2404074,138.69,138.65,20.18064886]
[1745235135925,7.2404074,138.69,138.64,6.202]
[1745235136321,0.03,138.69,138.63,80.51028629]
[1745235136615,26.14216157,138.68,138.6,6.202]
[1745235136824,0.14216157,138.66,138.6,6.202]
[1745235137124,26.0,138.67,138.61,18.64964886]
[1745235137404,16.6702,138.69,138.61,18.64964886]
[1745235137604,15.15,138.69,138.61,125.15993515]
[1745235138311,22.36040585,138.69,138.62,7.21396623]
[1745235139210,22.36040585,138.69,138.64,33.21271536]
[1745235141414,22.36040585,138.69,138.64,26.0]
[1745235142120,22.36040585,138.69,138.64,33.21289086]
[1745235142511,22.36040585,138.69,138.65,18.64964886]
[1745235142919,0.03,138.69,138.65,18.64964886]
[1745235143302,0.03,138.69,138.65,27.39278577]
[1745235145418,0.03,138.69,138.65,20.18064886]
[1745235147217,0.03,138.69,138.65,27.39303722]
[1745235147910,0.03,138.69,138.68,44.64964886]
[1745235148713,0.03,138.69,138.66,32.202]
[1745235148920,0.03,138.69,138.67,18.64964886]
[1745235150543,0.03,138.69,138.65,80.51028629]
[1745235150718,0.03,138.69,138.63,7.21323053]
[1745235151032,0.03,138.69,138.64,18.64964886]
[1745235152336,0.03,138.69,138.64,25.86239756]
[1745235153441,0.03,138.69,138.63,18.64964886]
[1745235153830,0.17216157,138.69,138.62,6.202]
[1745235155241,0.17216157,138.69,138.62,13.41585226]
[1745235155940,0.03,138.69,138.63,25.86285315]
[1745235157152,0.03,138.69,138.63,18.64964886]
[1745235158041,0.03,138.69,138.63,25.86303361]
[1745235158222,0.03,138.69,138.63,18.64964886]
[1745235158624,0.03,138.69,138.63,25.86309295]
[1745235159136,0.03,138.69,138.63,18.64964886]
[1745235161143,7.21084511,138.68,138.62,6.202]
[1745235161352,0.14216157,138.67,138.59,6.11810001]
[1745235162255,0.14216157,138.67,138.6,18.64964886]
[1745235163353,7.21188518,138.66,138.6,18.64964886]
[1745235163943,7.21155083,138.67,138.6,25.86460319]
[1745235166465,7.21155083,138.67,138.6,106.37488948]
[1745235169344,7.21155083,138.67,138.6,99.15993515]
[1745235170154,25.2399636,138.67,138.6,99.15993515]
[1745235171854,25.2399636,138.67,138.6,106.37490818]
[1745235172357,25.2399636,138.67,138.6,25.86462189]
[1745235173659,25.2399636,138.67,138.6,18.64964886]
[1745235174033,0.14216157,138.66,138.59,6.11810001]
[1745235174242,0.14216157,138.66,138.59,1e-08]
[1745235175764,7.21240533,138.65,138.59,1e-08]
[1745235176062,7.21240533,138.65,138.59,44.64964887]
[1745235177068,25.23977788,138.67,138.6,7.21500721]
[1745235178573,25.23977788,138.67,138.59,51.86499673]
[1745235180777,7.21136511,138.67,138.59,51.86499673]
[1745235181068,7.21136511,138.67,138.61,18.64964886]
[1745235182247,7.21136511,138.67,138.61,25.86411826]
[1745235182468,7.21136511,138.67,138.61,18.64964886]
[1745235182877,25.23977788,138.67,138.59,33.21544818]
[1745235183060,25.23977788,138.67,138.6,18.64964886]
[1745235183967,7.21136511,138.67,138.6,25.86458162]
[1745235185072,25.23977788,138.67,138.6,18.64964886]
[1745235185244,0.14216157,138.66,138.59,33.21546201]
[1745235186273,7.21240533,138.65,138.59,33.21546201]
[1745235186678,7.21240533,138.65,138.59,26.00000001]
[1745235186679,25.24341867,138.65,138.59,26.00000001]
[1745235186973,25.24341867,138.65,138.59,1e-08]
[1745235187662,0.14216157,138.64,138.59,1e-08]
[1745235188277,25.24706051,138.63,138.59,1e-08]
[1745235190760,7.21344586,138.63,138.59,1e-08]
[1745235194565,7.3545669,138.65,138.59,1e-08]
[1745235195077,7.3545669,138.65,138.59,7.21552782]
[1745235195981,7.21240533,138.65,138.59,7.21552782]
[1745235196200,26.0,138.66,138.59,7.21552782]
[1745235196201,15.0,138.68,138.6,18.64964886]
[1745235196408,15.0,138.68,138.63,26.0]
[1745235196577,7.24061782,138.69,138.64,18.64964886]
[1745235196770,0.03,138.69,138.64,18.64964886]
[1745235197099,0.03,138.69,138.65,7.21240533]
[1745235198077,0.03,138.69,138.64,25.86243283]
[1745235201488,0.03,138.69,138.64,27.41583283]
[1745235204591,0.03,138.69,138.68,18.64964886]
[1745235205097,0.03,138.69,138.67,26.0]
[1745235205875,0.03,138.69,138.67,33.21122051]
[1745235207095,0.03,138.69,138.67,26.0]
[1745235207396,0.03,138.69,138.64,89.2763817]
[1745235207584,0.03,138.69,138.65,18.64964886]
[1745235208699,0.03,138.69,138.65,25.86156042]
[1745235217594,0.03,138.69,138.65,18.64964886]
[1745235217983,0.03,138.69,138.65,25.86195164]
[1745235225310,0.03,138.69,138.65,106.37223793]
[1745235225696,0.03,138.69,138.65,124.40325127]
[1745235226210,0.03,138.69,138.68,44.64964886]
[1745235228216,0.03,138.69,138.68,51.86049397]
[1745235231014,0.03,138.73,138.69,18.64964886]
[1745235231216,0.03,138.73,138.69,99.15993515]
[1745235232817,0.03,138.73,138.7,7.20980533]
[1745235233202,0.03,138.73,138.71,18.64964886]
[1745235234207,0.03,138.73,138.71,25.85879814]
[1745235236823,0.03,138.73,138.69,80.51028629]
[1745235236994,0.03,138.73,138.68,18.64964886]
[1745235237195,0.03,138.73,138.67,7.21114803]
[1745235237399,26.03,138.73,138.67,18.64964886]
[1745235238121,7.20876585,138.72,138.67,25.86099816]
[1745235238319,7.23848552,138.73,138.67,25.86099816]
[1745235238917,7.23848552,138.73,138.67,18.64964886]
[1745235239223,7.23848552,138.73,138.66,80.51028629]
[1745235239424,7.23848552,138.73,138.66,18.64964886]
[1745235240117,7.23848552,138.73,138.67,7.21136511]
[1745235240317,7.23848552,138.73,138.66,7.21165135]
[1745235244637,7.23848552,138.73,138.65,25.86186456]
[1745235244638,25.2591011,138.73,138.65,25.86186456]
[1745235245314,0.14216157,138.72,138.65,18.64964886]
[1745235246035,26.14216157,138.7,138.62,86.72578629]
[1745235246225,1.655,138.69,138.62,18.64964886]
[1745235247040,7.21084511,138.68,138.62,18.64964886]
[1745235247341,7.21084511,138.68,138.62,25.86355268]
[1745235247631,26.14216157,138.72,138.62,36.44531649]
[1745235247834,26.0,138.72,138.62,116.95560278]
[1745235248229,7.20876585,138.72,138.66,18.64964886]
[1745235248435,7.20876585,138.72,138.66,99.15993515]
[1745235249119,7.20876585,138.72,138.66,106.37137914]
[1745235250129,7.20876585,138.72,138.66,99.15993515]
[1745235250346,7.20876585,138.72,138.66,80.51028629]
[1745235250818,25.23068049,138.72,138.66,80.51028629]
[1745235251545,0.03,138.73,138.7,18.64964886]
[1745235252212,0.03,138.73,138.72,18.64964886]
[1745235253319,0.03,138.73,138.72,7.20876585]
[1745235255134,0.03,138.73,138.71,7.20928555]
[1745235255345,0.03,138.73,138.72,18.55394235]
[1745235256429,0.03,138.73,138.72,7.20876585]
[1745235257516,0.03,138.73,138.72,18.64964886]
[1745235258942,0.03,138.73,138.72,44.64964886]
[1745235259151,0.03,138.73,138.72,46.18194886]
[1745235259533,0.03,138.73,138.72,53.39071471]
[1745235263247,0.03,138.73,138.72,133.901001]